fUSD/lending_fUSD_20240918
["ID","MTS","AMOUNT","RATE_DAILY","PERIOD"]
[338438015,1726639838101,-646.08003166,0.00013,2]
[338438187,1726639840010,-601.77890206,0.0001274,2]
[338438481,1726639843043,-666.25339549,0.0001274,2]
[338438482,1726639843052,-505.0,0.00013,2]
[338438484,1726639843062,-8324.21699273,0.00013,2]
[338438486,1726639843088,-612.26969943,0.00013,2]
[338438488,1726639843099,-2826.0,0.00013,2]
[338438490,1726639843118,-370.907,0.00013,2]
[338438508,1726639843413,-447.3484677,0.00013,2]
[338438690,1726639846653,-302.36524863,0.00013,2]
[338439512,1726639909990,250.0,0.00012356,2]
[338439513,1726639963089,272.7,0.00010705,2]
[338439514,1726640027990,156.45,0.00010959,2]
[338439515,1726640081236,682.6,0.0001258,2]
[338439516,1726640092750,300.0,0.000124,4]
[338439517,1726640094866,600.0,0.000125,4]
[338439518,1726640096961,1000.0,0.000126,4]
[338439519,1726640165135,611.49457333,0.00012582,2]
[338439521,1726640506505,275.39,0.00010228,2]
[338439522,1726640506562,275.39,0.00012492,2]
[338439523,1726640557505,453.92,0.00012223,2]
[338439524,1726640579590,2632.67525488,0.00024,120]
[338439525,1726640638816,182.44,0.00012259,2]
[338439529,1726640937815,10170.81,0.00012215,2]
[338439530,1726640982527,250.0,0.00012216,2]
[338439531,1726641016437,263.36,0.00010304,2]
[338439532,1726641016681,263.36,0.00012568,2]
[338439536,1726641032010,-592.98933801,0.000128,2]
[338439538,1726641032021,-1748.27828253,0.0001287,2]
[338439540,1726641032030,-975.32548,0.0001287,2]
[338439541,1726641032039,-29.16108544,0.00012899,2]
[338439542,1726641032052,-120.83891456,0.00012899,2]
[338439543,1726641032061,-1584.93868544,0.000129,2]
[338439544,1726641032072,-1198.16775,0.000129,2]
[338439545,1726641032084,-999.915646,0.000129,2]
[338439546,1726641032097,-1777.48768149,0.000129,2]
[338439547,1726641032114,-404.0,0.000129,2]
[338439548,1726641032126,-349.70936002,0.000129,2]
[338439549,1726641032137,-563.69998346,0.000129,2]
[338439557,1726641033214,-337.61314813,0.000129,2]
[338439558,1726641033225,-755.72904,0.000129,2]
[338439559,1726641033237,-295.44814184,0.000129,2]
[338439560,1726641033249,-10458.17465037,0.000129,2]
[338439561,1726641033260,-12552.98142732,0.000129,2]
[338439562,1726641033280,-909.3594811,0.000129,2]
[338439563,1726641033292,-9461.87450483,0.000129,2]
[338439564,1726641033302,-3497.970885,0.000129,2]
[338439565,1726641033313,-1290.4056,0.000129,2]
[338439566,1726641033322,-175.32119274,0.000129,2]
[338439567,1726641033331,-21282.9882,0.000129,2]
[338439568,1726641033341,-4846.8052,0.000129,2]
[338439569,1726641033351,-619.1846,0.000129,2]
[338439570,1726641033360,-7972.03613364,0.000129,2]
[338439571,1726641033370,-340.38012788,0.000129,2]
[338439572,1726641033383,-185.71939874,0.000129,2]
[338439573,1726641033392,-563.861,0.000129,2]
[338439574,1726641033401,-179.91941837,0.000129,2]
[338439575,1726641033410,-1112.69931451,0.000129,2]
[338439576,1726641033419,-2379.91505313,0.000129,2]
[338439577,1726641033429,-521.4,0.00012969,2]
[338439578,1726641033438,-500.0,0.00012973,2]
[338439579,1726641033448,-170.3363193,0.00012973,2]
[338439580,1726641033457,-545.62357753,0.00012973,2]
[338439581,1726641033466,-1016.9476,0.00012986,2]
[338439582,1726641033476,-1055.01,0.00012986,2]
[338439583,1726641033485,-2201.44,0.0001299,2]
[338439584,1726641033494,-152.93,0.0001299,2]
[338439585,1726641033504,-500.0,0.00012999,2]
[338439586,1726641033513,-500.0,0.00012999,2]
[338439587,1726641033523,-500.0,0.00012999,2]
[338439588,1726641033532,-500.0,0.00012999,2]
[338439589,1726641033542,-500.0,0.00012999,2]
[338439590,1726641033551,-256.33770822,0.00012999,2]
[338439591,1726641033561,-500.0,0.00012999,2]
[338439592,1726641033571,-500.0,0.00012999,2]
[338439593,1726641033581,-500.0,0.00012999,2]
[338439594,1726641033590,-338.79488358,0.00012999,2]
[338439595,1726641033600,-300.02,0.00012999,2]
[338439596,1726641033610,-513.0,0.00013,2]
[338439597,1726641033620,-72179.01392897,0.00013,2]
[338439598,1726641033649,-712.8352503,0.00013,2]
[338439599,1726641033661,-423.03210488,0.00013,2]
[338439600,1726641033692,-300.0,0.00013,2]
[338439601,1726641033712,-13115.76460994,0.00013,2]
[338439602,1726641033723,-493.5770007,0.00013,2]
[338439603,1726641033737,-264.82796935,0.00013,2]
[338439604,1726641033749,-4851.36892232,0.00013,2]
[338439605,1726641033764,-968.61574791,0.00013,2]
[338439606,1726641033776,-15756.28312658,0.00013,2]
[338439607,1726641033787,-2983.57578526,0.00013,2]
[338439613,1726641037938,-307.07755376,0.00013,2]
[338439614,1726641037958,-23183.27718853,0.00013,2]
[338439616,1726641037979,-575.0,0.00013,2]
[338439617,1726641037995,-469.45,0.00013,2]
[338439618,1726641038022,-1537.30297559,0.00013,2]
[338439619,1726641038052,-300.001004,0.00013,2]
[338439620,1726641038076,-3955.01642289,0.00013,2]
[338439621,1726641038091,-28044.33900504,0.00013,2]
[338439622,1726641038109,-3861.57904239,0.00013,2]
[338439623,1726641038125,-6465.10173366,0.00013,2]
[338439624,1726641038140,-326.45,0.00013,2]
[338439625,1726641038170,-545.38081108,0.00013,2]
[338439626,1726641038184,-1100.67125844,0.00013,2]
[338439627,1726641038200,-6362.99948208,0.00013,2]
[338439628,1726641038225,-789.67051288,0.00013,2]
[338439629,1726641038240,-2234.28306925,0.00013,2]
[338439630,1726641038255,-542.99403541,0.00013,2]
[338439631,1726641038291,-19932.1079245,0.00013,2]
[338439632,1726641038306,-4359.03,0.00013,2]
[338439633,1726641038321,-666.4,0.00013,2]
[338439634,1726641038336,-766.63093372,0.00013,2]
[338439636,1726641038351,-3725.39043297,0.00013,2]
[338439638,1726641038366,-10057.58,0.00013,2]
[338439641,1726641038380,-1167.56978197,0.00013,2]
[338439643,1726641038397,-443.13092382,0.00013,2]
[338439645,1726641038411,-1043.64469996,0.00013,2]
[338439647,1726641038425,-288.83014178,0.00013,2]
[338439650,1726641038438,-515.28705452,0.00013,2]
[338439652,1726641038449,-1107.58937578,0.00013,2]
[338439654,1726641038464,-709.08266212,0.00013,2]
[338439656,1726641038475,-6588.65145576,0.00013,2]
[338439658,1726641038487,-6580.32588085,0.00013,2]
[338439660,1726641038496,-11143.12051443,0.00013,2]
[338439662,1726641038508,-4183.97458834,0.00013,2]
[338439664,1726641038521,-54424.44962291,0.00013,2]
[338439867,1726641040254,-1272.77759084,0.00013,2]
[338439869,1726641040266,-32808.21967303,0.00013,2]
[338439870,1726641040277,-5520.4318433,0.00013,2]
[338439871,1726641040293,-323.48663369,0.00013,2]
[338439872,1726641040305,-1079.800005,0.00013,2]
[338439873,1726641040324,-503.4787228,0.00013,2]
[338439874,1726641040335,-3593.08737091,0.00013,2]
[338439875,1726641040347,-17049.04648691,0.00013,2]
[338439876,1726641040370,-6174.05112222,0.00013,2]
[338439877,1726641040382,-416.47603396,0.00013,2]
[338439878,1726641040396,-2544.08778353,0.00013,2]
[338439879,1726641040407,-2833.72264,0.00013,2]
[338439880,1726641040418,-4021.55597981,0.00013,2]
[338439881,1726641040429,-310.14703584,0.00013,2]
[338439882,1726641040441,-347.78074878,0.00013,2]
[338439884,1726641040456,-307.46014093,0.00013,2]
[338439886,1726641040468,-24104.6103854,0.00013,2]
[338439892,1726641040521,-540.18000005,0.00013,2]
[338439894,1726641040532,-322.85018007,0.00013,2]
[338440155,1726641043190,-297.59077079,0.00013,2]
[338440208,1726641044271,-27020.25076693,0.00013,2]
[338440209,1726641044282,-334515.34678073,0.00013,2]
[338440211,1726641044302,-630.18302999,0.00013,2]
[338440213,1726641044314,-16513.05539984,0.00013,2]
[338440216,1726641044325,-462.48704138,0.00013,2]
[338440218,1726641044336,-1364.2199562,0.00013,2]
[338440220,1726641044348,-21934.19,0.00013,2]
[338440222,1726641044359,-883.32723249,0.00013,2]
[338440229,1726641044418,-42875.27558429,0.00013,2]
[338440231,1726641044430,-3939.92439593,0.00013,2]
[338440234,1726641044442,-935.898057,0.00013,2]
[338440236,1726641044453,-311.308985,0.00013,2]
[338440250,1726641044578,-6428.28499988,0.00013,2]
[338440273,1726641044786,-2694.80145435,0.00013,2]
[338440425,1726641046350,-412.19689921,0.00012999,2]
[338440427,1726641046360,-7184.80310029,0.00013,2]
[338440429,1726641046376,-1900.0,0.00013,2]
[338440432,1726641046398,-354.11893621,0.00013,2]
[338440436,1726641046428,-2343.02805816,0.00013,2]
[338440439,1726641046441,-787.3999998,0.00013,2]
[338440441,1726641046456,-13565.01429219,0.00013,2]
[338441288,1726641134523,1068.04,0.00024,120]
[338441289,1726641134921,1068.04,0.00024,120]
[338441290,1726641135113,1068.04,0.00024,120]
[338441291,1726641135401,1068.04,0.00024,120]
[338441292,1726641135662,1068.04,0.00024,120]
[338441293,1726641135964,1068.04,0.00024,120]
[338441294,1726641136253,1068.04,0.00024,120]
[338441295,1726641136528,1068.04,0.00024,120]
[338441296,1726641136850,1068.04,0.00024,120]
[338441297,1726641137065,1068.04,0.00024,120]
[338441298,1726641137319,1068.04,0.00024,120]
[338441299,1726641137644,1068.04,0.00024,120]
[338441300,1726641137910,1068.04,0.00024,120]
[338441301,1726641138198,1068.04,0.00024,120]
[338441302,1726641138507,1068.04,0.00024,120]
[338441303,1726641138911,1068.04,0.00024,120]
[338441304,1726641139277,1068.04,0.00024,120]
[338441305,1726641139537,1068.04,0.00024,120]
[338441306,1726641139816,1068.04,0.00024,120]
[338441307,1726641140158,1068.04,0.00024,120]
[338441308,1726641140440,1068.04,0.00024,120]
[338441309,1726641140771,1068.04,0.00024,120]
[338441310,1726641140976,1068.04,0.00024,120]
[338441311,1726641141309,1068.10457861,0.00024,120]
[338441312,1726641147022,220.23,0.00023,60]
[338441313,1726641156297,220.23,0.00023,60]
[338441314,1726641172101,220.23,0.00023,60]
[338441315,1726641191059,220.23,0.00024,120]
[338441316,1726641195471,153.79,0.00010959,2]
[338441317,1726641586955,161.0908847,0.0001264,2]
[338441318,1726641586980,240.79507375,0.0001264,2]
[338441319,1726641599998,250.0,0.00012571,2]
[338441320,1726641624766,570.13980467,0.000127,2]
[338441321,1726641635950,363.14,0.00012539,2]
[338441344,1726641710457,267.9239723,0.0001264,2]
[338441345,1726641728592,159.89,0.00010959,2]
[338441346,1726641735510,251.76,0.00010611,2]
[338441347,1726641836534,127.95177673,0.0001264,2]
[338441348,1726641836562,50.66420481,0.0001264,2]
[338441349,1726642133692,709.48,0.00012553,2]
[338441350,1726642170268,888.0,0.00024,120]
[338441351,1726642178504,250.0,0.00012553,2]
[338441356,1726642196786,388.0,0.00023,60]
[338441357,1726642218938,1000.0,0.00024,120]
[338441360,1726642232288,-175.909,0.0001274,2]
[338441361,1726642232298,-525.477,0.0001274,2]
[338441362,1726642232307,-287.64,0.00012864,2]
[338441363,1726642232316,-251.76,0.00012875,2]
[338441364,1726642232325,-347.337,0.000129,2]
[338441365,1726642232335,-175.32119271,0.000129,2]
[338441366,1726642232344,-272.30410232,0.000129,2]
[338441367,1726642232354,-3791.23472297,0.000129,2]
[338441368,1726642232366,-783.47475096,0.000129,2]
[338441369,1726642232375,-27.58194517,0.000129,2]
[338441370,1726642232386,-479.57301165,0.000129,2]
[338441371,1726642232398,-337.36323209,0.000129,2]
[338441374,1726642232717,-6345.65096118,0.000129,2]
[338441376,1726642232727,-741.799543,0.000129,2]
[338441378,1726642232737,-180.05783861,0.000129,2]
[338441379,1726642232747,-153.0,0.0001299,2]
[338441381,1726642232757,-150.0,0.00012999,2]
[338441382,1726642232767,-300.0,0.00012999,2]
[338441384,1726642232776,-44906.89992662,0.00013,2]
[338441386,1726642232811,-568.42,0.00013,2]
[338441387,1726642232910,-538.28438064,0.00013,2]
[338441388,1726642234513,1000.0,0.00023,60]
[338441389,1726642238197,-1939.80159629,0.00013,2]
[338441390,1726642238387,-1607.03203171,0.00013,2]
[338441391,1726642238440,-4134.58243693,0.00013,2]
[338441566,1726642240365,-1414.61892182,0.00013,2]
[338441570,1726642240396,-563.31,0.00013,2]
[338441572,1726642240409,-1629.78778387,0.00013,2]
[338441577,1726642240440,-14149.63151993,0.00013,2]
[338441580,1726642240460,-2847.11698804,0.00013,2]
[338441582,1726642240472,-735.24402019,0.00013,2]
[338441585,1726642240495,-2720.835,0.00013,2]
[338441588,1726642240510,-14743.1286155,0.00013,2]
[338441857,1726642243780,-688.77993674,0.00013,2]
[338441859,1726642243922,-486.652482,0.00013,2]
[338442049,1726642246186,-30719.13438568,0.00013,2]
[338442050,1726642246246,-488.42092373,0.00013,2]
[338442051,1726642246301,-300.0,0.00013,2]
[338442052,1726642246313,-118.68895479,0.00013,2]
[338442053,1726642246323,-5681.68126456,0.00013,2]
[338442060,1726642246469,-14195.43274064,0.00013,2]
[338442307,1726642249086,1000.0,0.0001264,2]
[338443357,1726642306663,1128.63528966,0.0001264,2]
[338443358,1726642486688,254.57,0.00010673,2]
[338443359,1726642490712,1000.0,0.0001264,2]
[338443384,1726642659446,213.59,0.00012516,2]
[338443385,1726642672344,250.0,0.00012516,2]
[338444115,1726642725145,432.41,0.00012478,2]
[338444116,1726642845460,156.03,0.00010959,2]
[338444117,1726642977570,255.13,0.00010678,2]
[338444118,1726642995435,2000.0,0.00024,120]
[338444119,1726643010388,500.00025007,0.00024,120]
[338444120,1726643038068,1941.93947524,0.00012,2]
[338444121,1726643113172,980.31,0.00024,120]
[338444122,1726643113726,980.31,0.00024,120]
[338444123,1726643113830,4145.6,0.00024,120]
[338444124,1726643113981,980.31,0.00024,120]
[338444125,1726643114113,4145.6,0.00024,120]
[338444126,1726643114331,980.31,0.00024,120]
[338444127,1726643114396,4145.6,0.00024,120]
[338444128,1726643114530,980.31,0.00024,120]
[338444129,1726643114665,4145.6,0.00024,120]
[338444130,1726643114729,1407.53,0.00024,120]
[338444131,1726643114788,980.31,0.00024,120]
[338444132,1726643115020,1407.53,0.00024,120]
[338444133,1726643115086,980.31,0.00024,120]
[338444134,1726643115147,4145.6,0.00024,120]
[338444135,1726643115338,1407.53,0.00024,120]
[338444136,1726643115396,980.31,0.00024,120]
[338444137,1726643115444,4145.6,0.00024,120]
[338444138,1726643115527,500.0,0.00024,120]
[338444139,1726643115638,1407.53,0.00024,120]
[338444140,1726643115683,980.31,0.00024,120]
[338444141,1726643115724,4145.6,0.00024,120]
[338444142,1726643115764,7227.0,0.00024,120]
[338444143,1726643115900,500.0,0.00024,120]
[338444144,1726643116006,980.31,0.00024,120]
[338444145,1726643116051,4145.6,0.00024,120]
[338444146,1726643116094,1407.53,0.00024,120]
[338444147,1726643116140,500.0,0.00024,120]
[338444148,1726643116186,7227.0,0.00024,120]
[338444149,1726643116227,500.0,0.00024,120]
[338444150,1726643116291,980.31,0.00024,120]
[338444151,1726643116343,1407.53,0.00024,120]
[338444152,1726643116389,500.0,0.00024,120]
[338444153,1726643116434,7227.0,0.00024,120]
[338444154,1726643116477,6819.32,0.00024,120]
[338444155,1726643116526,500.0,0.00024,120]
[338444156,1726643116581,1407.53,0.00024,120]
[338444157,1726643116626,4145.6,0.00024,120]
[338444158,1726643116676,500.0,0.00024,120]
[338444159,1726643116717,7227.0,0.00024,120]
[338444160,1726643116759,6819.32,0.00024,120]
[338444161,1726643116807,500.0,0.00024,120]
[338444162,1726643116855,980.31,0.00024,120]
[338444163,1726643116919,1407.53,0.00024,120]
[338444164,1726643116965,4145.6,0.00024,120]
[338444165,1726643117259,6819.32,0.00024,120]
[338444166,1726643117307,7227.0,0.00024,120]
[338444167,1726643117347,250.5690198,0.00024,120]
[338444168,1726643117509,980.31,0.00024,120]
[338444169,1726643117589,1407.53,0.00024,120]
[338444170,1726643117727,6819.32,0.00024,120]
[338444171,1726643117770,4145.6,0.00024,120]
[338444172,1726643117810,7227.0,0.00024,120]
[338444173,1726643117851,980.31,0.00024,120]
[338444174,1726643117908,1407.53,0.00024,120]
[338444175,1726643117958,6819.32,0.00024,120]
[338444176,1726643118001,4145.6,0.00024,120]
[338444177,1726643118042,980.31,0.00024,120]
[338444178,1726643118084,7227.0,0.00024,120]
[338444179,1726643118125,500.0,0.00024,120]
[338444180,1726643118186,1407.53,0.00024,120]
[338444181,1726643118236,6819.32,0.00024,120]
[338444182,1726643118279,980.31,0.00024,120]
[338444183,1726643118322,4145.6,0.00024,120]
[338444184,1726643118365,500.0,0.00024,120]
[338444185,1726643118459,500.0,0.00024,120]
[338444186,1726643118502,7227.0,0.00024,120]
[338444187,1726643119505,1407.53,0.00024,120]
[338444188,1726643119547,6819.32,0.00024,120]
[338444189,1726643119589,980.31,0.00024,120]
[338444190,1726643119668,500.0,0.00024,120]
[338444191,1726643119719,7227.0,0.00024,120]
[338444192,1726643119761,4145.6,0.00024,120]
[338444193,1726643119802,500.0,0.00024,120]
[338444194,1726643119851,1407.53,0.00024,120]
[338444195,1726643120041,6819.32,0.00024,120]
[338444196,1726643120150,980.31,0.00024,120]
[338444197,1726643120221,500.0,0.00024,120]
[338444198,1726643120617,7227.0,0.00024,120]
[338444199,1726643120663,4145.6,0.00024,120]
[338444200,1726643120705,1407.53,0.00024,120]
[338444201,1726643120748,500.0,0.00024,120]
[338444202,1726643120819,500.0,0.00024,120]
[338444203,1726643120860,6819.32,0.00024,120]
[338444204,1726643120902,980.31,0.00024,120]
[338444205,1726643120947,7227.0,0.00024,120]
[338444206,1726643120996,4145.6,0.00024,120]
[338444207,1726643121162,500.0,0.00024,120]
[338444208,1726643121207,1407.53,0.00024,120]
[338444209,1726643121260,500.0,0.00024,120]
[338444210,1726643121305,7227.0,0.00024,120]
[338444211,1726643121364,980.31,0.00024,120]
[338444212,1726643121530,4145.6,0.00024,120]
[338444213,1726643121577,6819.32,0.00024,120]
[338444214,1726643121617,500.0,0.00024,120]
[338444215,1726643121658,1407.53,0.00024,120]
[338444216,1726643121712,980.31,0.00024,120]
[338444217,1726643121755,500.0,0.00024,120]
[338444218,1726643121800,6819.32,0.00024,120]
[338444219,1726643121841,500.0,0.00024,120]
[338444220,1726643121880,1407.53,0.00024,120]
[338444221,1726643121920,510.74087796,0.00024,120]
[338444222,1726643121959,980.31,0.00024,120]
[338444223,1726643122005,4145.6,0.00024,120]
[338444224,1726643122045,6819.32,0.00024,120]
[338444225,1726643122090,500.0,0.00024,120]
[338444226,1726643122159,1407.53,0.00024,120]
[338444227,1726643122286,980.31,0.00024,120]
[338444228,1726643122329,4145.6,0.00024,120]
[338444229,1726643122373,6819.32,0.00024,120]
[338444230,1726643122414,500.0,0.00024,120]
[338444231,1726643122458,980.48947164,0.00024,120]
[338444232,1726643122500,4145.6,0.00024,120]
[338444233,1726643122539,6819.32,0.00024,120]
[338444234,1726643122582,500.0,0.00024,120]
[338444235,1726643122627,4145.6,0.00024,120]
[338444236,1726643122671,500.0,0.00024,120]
[338444237,1726643122712,6819.32,0.00024,120]
[338444238,1726643122754,4145.6,0.00024,120]
[338444239,1726643122811,500.0,0.00024,120]
[338444240,1726643122898,6819.32,0.00024,120]
[338444241,1726643122956,4145.6,0.00024,120]
[338444242,1726643123002,500.0,0.00024,120]
[338444243,1726643123040,6819.32,0.00024,120]
[338444244,1726643123080,4145.63829251,0.00024,120]
[338444245,1726643123142,500.0,0.00024,120]
[338444246,1726643123185,6819.32,0.00024,120]
[338444247,1726643123270,500.0,0.00024,120]
[338444248,1726643123310,500.0,0.00024,120]
[338444249,1726643123350,6819.32,0.00024,120]
[338444250,1726643123409,500.0,0.00024,120]
[338444251,1726643123460,500.0,0.00024,120]
[338444252,1726643123501,6819.32,0.00024,120]
[338444253,1726643123554,500.0,0.00024,120]
[338444254,1726643123596,500.0,0.00024,120]
[338444255,1726643123642,500.0,0.00024,120]
[338444256,1726643123690,6819.32,0.00024,120]
[338444257,1726643123736,376.39164843,0.00024,120]
[338444258,1726643123800,500.0,0.00024,120]
[338444259,1726643123848,6819.32,0.00024,120]
[338444260,1726643123890,500.0,0.00024,120]
[338444261,1726643123934,500.0,0.00024,120]
[338444262,1726643124151,6819.32,0.00024,120]
[338444263,1726643124196,500.0,0.00024,120]
[338444264,1726643124237,500.0,0.00024,120]
[338444265,1726643124287,6819.42734351,0.00024,120]
[338444266,1726643124329,500.0,0.00024,120]
[338444267,1726643124373,500.0,0.00024,120]
[338444268,1726643124433,500.0,0.00024,120]
[338444269,1726643124474,500.0,0.00024,120]
[338444270,1726643124763,500.0,0.00024,120]
[338444271,1726643124803,500.0,0.00024,120]
[338444272,1726643124864,500.0,0.00024,120]
[338444273,1726643125012,425.45,0.00024,120]
[338444274,1726643125980,897.91,0.00024,120]
[338444275,1726643126033,209.25673879,0.00024,120]
[338444276,1726643126078,897.91,0.00024,120]
[338444277,1726643126371,500.0,0.00024,120]
[338444278,1726643126553,897.91,0.00024,120]
[338444279,1726643126606,500.0,0.00024,120]
[338444280,1726643126653,4487.05,0.00024,120]
[338444281,1726643126693,897.91,0.00024,120]
[338444282,1726643126740,500.0,0.00024,120]
[338444283,1726643126783,500.0,0.00024,120]
[338444284,1726643126832,500.0,0.00024,120]
[338444285,1726643126876,4487.05,0.00024,120]
[338444286,1726643126917,897.91,0.00024,120]
[338444287,1726643126960,500.0,0.00024,120]
[338444288,1726643127011,500.0,0.00024,120]
[338444289,1726643127058,500.0,0.00024,120]
[338444290,1726643127101,4487.05,0.00024,120]
[338444291,1726643127143,897.91,0.00024,120]
[338444292,1726643127220,500.0,0.00024,120]
[338444293,1726643127390,500.0,0.00024,120]
[338444294,1726643127431,500.0,0.00024,120]
[338444295,1726643127483,4487.05,0.00024,120]
[338444296,1726643127523,897.91,0.00024,120]
[338444297,1726643127571,500.0,0.00024,120]
[338444298,1726643127618,500.0,0.00024,120]
[338444299,1726643127663,2531.84,0.00024,120]
[338444300,1726643127706,500.0,0.00024,120]
[338444301,1726643127754,897.91,0.00024,120]
[338444302,1726643127802,4487.05,0.00024,120]
[338444303,1726643127848,500.0,0.00024,120]
[338444304,1726643127895,887.06,0.00024,120]
[338444305,1726643127939,2531.84,0.00024,120]
[338444306,1726643127989,500.0,0.00024,120]
[338444307,1726643128039,897.91,0.00024,120]
[338444308,1726643128085,4487.05,0.00024,120]
[338444309,1726643128133,500.0,0.00024,120]
[338444310,1726643128181,500.0,0.00024,120]
[338444311,1726643128232,2531.84,0.00024,120]
[338444312,1726643128276,897.91,0.00024,120]
[338444313,1726643128320,500.0,0.00024,120]
[338444314,1726643128364,4487.05,0.00024,120]
[338444315,1726643128416,500.0,0.00024,120]
[338444316,1726643128461,500.0,0.00024,120]
[338444317,1726643128510,7227.0,0.00024,120]
[338444318,1726643128562,2531.84,0.00024,120]
[338444319,1726643128605,897.91,0.00024,120]
[338444320,1726643128654,500.0,0.00024,120]
[338444321,1726643128753,4487.05,0.00024,120]
[338444322,1726643128825,500.0,0.00024,120]
[338444323,1726643128904,500.0,0.00024,120]
[338444324,1726643129224,7227.0,0.00024,120]
[338444325,1726643130184,2531.84,0.00024,120]
[338444326,1726643130224,897.91,0.00024,120]
[338444327,1726643130271,500.0,0.00024,120]
[338444328,1726643130314,500.0,0.00024,120]
[338444329,1726643130357,4487.05,0.00024,120]
[338444330,1726643130400,500.0,0.00024,120]
[338444331,1726643130455,7227.0,0.00024,120]
[338444332,1726643130499,2531.84,0.00024,120]
[338444333,1726643130542,897.91,0.00024,120]
[338444334,1726643130662,500.0,0.00024,120]
[338444335,1726643130714,500.0,0.00024,120]
[338444336,1726643130754,500.0,0.00024,120]
[338444337,1726643130796,4487.05,0.00024,120]
[338444338,1726643130838,1407.53,0.00024,120]
[338444339,1726643130881,897.91,0.00024,120]
[338444340,1726643130923,7227.0,0.00024,120]
[338444341,1726643130966,2531.84,0.00024,120]
[338444342,1726643131010,500.0,0.00024,120]
[338444343,1726643131059,500.0,0.00024,120]
[338444344,1726643131100,500.0,0.00024,120]
[338444345,1726643131143,500.0,0.00024,120]
[338444346,1726643131188,4487.05,0.00024,120]
[338444347,1726643131233,897.91,0.00024,120]
[338444348,1726643131273,7227.0,0.00024,120]
[338444349,1726643131315,500.0,0.00024,120]
[338444350,1726643131408,2531.84,0.00024,120]
[338444351,1726643131449,500.0,0.00024,120]
[338444352,1726643131491,500.0,0.00024,120]
[338444353,1726643131535,500.0,0.00024,120]
[338444354,1726643131578,4487.05,0.00024,120]
[338444355,1726643131625,7227.0,0.00024,120]
[338444356,1726643131676,1407.53,0.00024,120]
[338444357,1726643131719,500.0,0.00024,120]